bitfinex/quotes_BTCUSD_20251016
["timestamp","ask_amount","ask_price","bid_price","bid_amount"]
[1760613359546,0.59595944,111650.0,111640.0,0.08969012]
[1760613359966,0.59595944,111650.0,111640.0,0.26883737]
[1760613362474,0.035,111650.0,111640.0,0.26883737]
[1760613362684,0.015,111650.0,111640.0,0.26883737]
[1760613366629,0.015,111650.0,111640.0,0.41703737]
[1760613367501,0.015,111650.0,111640.0,0.75703737]
[1760613368151,0.015,111650.0,111640.0,0.75803737]
[1760613368376,0.015,111650.0,111640.0,0.75703737]
[1760613368844,0.015,111650.0,111640.0,0.75803737]
[1760613369562,0.015,111650.0,111640.0,0.84811737]
[1760613369810,0.19413121,111650.0,111640.0,0.26983737]
[1760613370017,0.19413121,111650.0,111640.0,0.35991737]
[1760613370237,0.53350437,111650.0,111640.0,0.18077012]
[1760613370449,0.19413121,111650.0,111640.0,0.35991737]
[1760613371374,0.54350437,111650.0,111640.0,0.09069012]
[1760613371806,0.54350437,111650.0,111640.0,0.001]
[1760613372024,0.88350437,111650.0,111640.0,0.001]
[1760613372238,5.88350437,111650.0,111640.0,0.001]
[1760613372681,0.1791633,111630.0,111620.0,0.09008]
[1760613372895,0.51853646,111630.0,111620.0,0.17977012]
[1760613373108,0.52853646,111630.0,111620.0,0.35894947]
[1760613373319,0.52853646,111630.0,111620.0,0.17977012]
[1760613373742,0.52853646,111630.0,111620.0,0.35894947]
[1760613374202,0.28057845,111630.0,111620.0,0.17977012]
[1760613374418,0.45974175,111630.0,111620.0,0.08969012]
[1760613374848,0.47625603,111630.0,111620.0,0.08969012]
[1760613375975,0.17917935,111620.0,111610.0,0.005]
[1760613376202,0.53855251,111620.0,111610.0,0.09469012]
[1760613376438,0.19917935,111620.0,111610.0,0.09469012]
[1760613376671,0.19917935,111620.0,111610.0,0.27388553]
[1760613380005,0.19917935,111620.0,111610.0,0.09469012]
[1760613381048,0.19917935,111620.0,111610.0,0.27388553]
[1760613381251,0.19917935,111620.0,111610.0,0.09469012]
[1760613382322,0.19917935,111620.0,111610.0,0.27388553]
[1760613382817,0.19917935,111620.0,111610.0,0.09469012]
[1760613383024,0.19917935,111620.0,111610.0,0.27388553]
[1760613391680,0.19917935,111620.0,111610.0,0.09469012]
[1760613391855,0.19917935,111620.0,111610.0,0.27388553]
[1760613392062,0.02,111620.0,111610.0,0.27388553]
[1760613392425,5.52070754,111640.0,111630.0,0.1791633]
[1760613392586,5.0,111630.0,111620.0,0.17917935]
[1760613392795,0.1791633,111630.0,111620.0,0.26886947]
[1760613393898,0.8600807,111640.0,111620.0,0.26886947]
[1760613394159,0.9100807,111640.0,111620.0,0.26886947]
[1760613394416,0.1791633,111630.0,111620.0,0.26886947]
[1760613394632,0.8610807,111640.0,111620.0,0.26886947]
[1760613394838,0.9100807,111640.0,111620.0,0.26886947]
[1760613395181,0.05256029,111640.0,111630.0,0.1791633]
[1760613395396,0.051,111640.0,111630.0,0.1791633]
[1760613396329,0.23014725,111640.0,111630.0,0.1791633]
[1760613396497,0.051,111640.0,111630.0,0.1791633]
[1760613396660,0.23014725,111640.0,111630.0,0.1791633]
[1760613396881,0.051,111640.0,111630.0,0.1791633]
[1760613397318,0.05,111640.0,111630.0,0.1791633]
[1760613397539,0.22914725,111640.0,111630.0,0.1791633]
[1760613398096,0.05,111640.0,111630.0,0.1791633]
[1760613398624,0.05,111640.0,111630.0,0.26885342]
[1760613399955,0.05,111640.0,111630.0,0.28505028]
[1760613400167,0.05,111640.0,111630.0,0.26885342]
[1760613409874,0.22914725,111640.0,111630.0,0.26885342]
[1760613410289,0.1791633,111630.0,111610.0,0.19315518]
[1760613410539,0.01,111630.0,111620.0,0.35894416]
[1760613410744,0.1891633,111630.0,111620.0,0.35894416]
[1760613410966,0.01,111630.0,111620.0,0.35894416]
[1760613419338,0.58138857,111630.0,111620.0,0.08969012]
[1760613419578,0.17917935,111620.0,111610.0,0.005]
[1760613419779,0.55855251,111620.0,111610.0,0.005]
[1760613420614,5.89855251,111620.0,111610.0,0.005]
[1760613420830,5.91790145,111620.0,111610.0,0.005]
[1760613421038,5.93469817,111620.0,111610.0,0.005]
[1760613423081,5.93625882,111620.0,111610.0,0.005]
[1760613423751,5.93622805,111620.0,111610.0,0.005]
[1760613424221,6.06210045,111620.0,111610.0,0.005]
[1760613425578,6.48728513,111620.0,111610.0,0.005]
[1760613425831,6.51619455,111620.0,111610.0,1e-08]
[1760613426863,6.10969064,111620.0,111610.0,1e-08]
[1760613428464,6.09292469,111620.0,111610.0,1e-08]
[1760613429292,6.5816172,111620.0,111610.0,1e-08]
[1760613429505,6.56488569,111620.0,111610.0,1e-08]
[1760613429718,6.6058388,111620.0,111610.0,1e-08]
[1760613430195,5.71813989,111620.0,111610.0,1e-08]
[1760613430438,5.768524,111620.0,111610.0,0.17919542]
[1760613430656,5.60301892,111620.0,111610.0,1e-08]
[1760613431091,5.94301892,111620.0,111610.0,1e-08]
[1760613435013,0.94301892,111620.0,111610.0,1e-08]
[1760613435641,0.94145827,111620.0,111610.0,1e-08]
[1760613438074,0.9430189,111620.0,111610.0,1e-08]
[1760613439238,0.94145827,111620.0,111610.0,1e-08]
[1760613439553,0.9430189,111620.0,111610.0,1e-08]
[1760613439768,5.94145827,111620.0,111610.0,1e-08]
[1760613441200,6.44960959,111620.0,111610.0,1e-08]
[1760613441403,6.46890263,111620.0,111610.0,1e-08]
[1760613441601,6.51260065,111620.0,111610.0,1e-08]
[1760613442033,6.51416139,111620.0,111610.0,1e-08]
[1760613442383,6.13188247,111620.0,111610.0,1e-08]
[1760613443828,6.22156455,111620.0,111610.0,1e-08]
[1760613445048,6.13188247,111620.0,111610.0,1e-08]
[1760613445254,6.15603433,111620.0,111610.0,1e-08]
[1760613446515,6.53831325,111620.0,111610.0,1e-08]
[1760613446742,6.57527966,111620.0,111610.0,1e-08]
[1760613446953,6.57576518,111620.0,111610.0,1e-08]
[1760613447169,6.63257032,111620.0,111610.0,1e-08]
[1760613447378,6.7222524,111620.0,111610.0,1e-08]
[1760613447572,6.68997062,111620.0,111610.0,1e-08]
[1760613448082,6.68840988,111620.0,111610.0,1e-08]
[1760613449397,6.68840988,111620.0,111600.0,1.12755849]
[1760613449398,6.28375325,111610.0,111600.0,1.12755849]
[1760613449607,6.66635418,111610.0,111600.0,1.12755849]
[1760613449852,6.66635418,111610.0,111600.0,0.77392558]
[1760613450229,6.6417168,111610.0,111600.0,0.77392558]
[1760613450648,6.6417168,111610.0,111600.0,0.77442632]
[1760613450846,6.66866854,111610.0,111600.0,0.77442632]
[1760613451066,6.67022946,111610.0,111600.0,0.77442632]
[1760613451484,6.57216492,111610.0,111600.0,0.77442632]
[1760613454619,6.52870631,111610.0,111600.0,0.77442632]
[1760613454881,6.57217303,111610.0,111600.0,0.77442632]
[1760613457803,6.57217303,111610.0,111600.0,0.28816848]
[1760613457804,7.03983209,111610.0,111600.0,0.28816848]
[1760613458025,6.63340499,111610.0,111600.0,0.28816848]
[1760613458325,7.01568391,111610.0,111600.0,0.28816848]
[1760613458552,6.72308707,111610.0,111600.0,0.28816848]
[1760613458772,7.10536599,111610.0,111600.0,1e-08]
[1760613458987,7.08072861,111610.0,111600.0,1e-08]
[1760613459208,7.10536599,111610.0,111600.0,1e-08]
[1760613459419,7.13757094,111610.0,111600.0,1e-08]
[1760613459634,7.13857094,111610.0,111600.0,1e-08]
[1760613460143,7.23301094,111610.0,111600.0,1e-08]
[1760613462390,6.85073202,111610.0,111600.0,1e-08]
[1760613462831,7.23301094,111610.0,111600.0,1e-08]
[1760613463730,7.23145002,111610.0,111600.0,1e-08]
[1760613464184,7.24550464,111610.0,111600.0,1e-08]
[1760613464398,7.21329969,111610.0,111600.0,1e-08]
[1760613464620,7.24544931,111610.0,111600.0,1e-08]
[1760613465513,7.46269969,111610.0,111600.0,1e-08]
[1760613465935,7.51268355,111610.0,111600.0,1e-08]
[1760613466248,7.49024749,111610.0,111600.0,1e-08]
[1760613466434,0.51924359,111580.0,111570.0,0.005]
[1760613466567,6.60940894,111580.0,111570.0,0.00505]
[1760613467196,6.63792848,111580.0,111570.0,0.00505]
[1760613468094,6.65245844,111580.0,111570.0,0.00505]
[1760613468906,6.67656749,111580.0,111570.0,0.00505]
[1760613469324,6.71274977,111580.0,111570.0,0.00505]
[1760613469839,6.71374977,111580.0,111570.0,0.00505]
[1760613472054,6.71374977,111580.0,111570.0,0.00680273]
[1760613477098,6.71843589,111580.0,111570.0,0.00680273]
[1760613479501,6.49884531,111580.0,111570.0,0.00680273]
[1760613479716,6.65397985,111580.0,111570.0,0.00680273]
[1760613480356,6.58413128,111580.0,111570.0,0.00680273]
[1760613481279,5.81957344,111580.0,111570.0,0.00680273]
[1760613481480,6.58413128,111580.0,111570.0,0.00680273]
[1760613485513,6.15957923,111580.0,111570.0,0.00680273]
[1760613485740,5.70709552,111580.0,111570.0,0.00680273]
[1760613485956,0.7024094,111580.0,111570.0,0.00680273]
[1760613486148,1.0424094,111580.0,111570.0,0.00680273]
[1760613487114,0.70240361,111580.0,111570.0,0.00680273]
[1760613487375,0.14931152,111580.0,111570.0,0.18606238]
[1760613487622,0.31180483,111580.0,111570.0,0.20398834]
[1760613487860,0.65181062,111580.0,111570.0,0.00680273]
[1760613488081,0.64924938,111580.0,111570.0,0.00680273]
[1760613496763,0.30924359,111580.0,111570.0,0.00680273]
[1760613497006,0.64924938,111580.0,111570.0,0.02472869]
[1760613497567,0.64924938,111580.0,111570.0,0.20398834]
[1760613497796,0.64924938,111580.0,111570.0,0.18606238]
[1760613498021,0.30924359,111580.0,111570.0,0.18606238]
[1760613498252,0.30924359,111580.0,111570.0,0.00680273]
[1760613499906,0.64924938,111580.0,111570.0,0.00680273]
[1760613500219,0.64924938,111580.0,111570.0,0.18606238]
[1760613501617,0.40481446,111580.0,111570.0,0.18606238]
[1760613501845,0.47481446,111580.0,111570.0,0.18606238]
[1760613503487,0.47481446,111580.0,111570.0,0.00680273]
[1760613505380,0.47481446,111580.0,111570.0,0.18606238]
[1760613507692,0.41000579,111580.0,111570.0,0.18606238]
[1760613507851,0.58924938,111580.0,111570.0,0.18606238]
[1760613508701,0.58924938,111580.0,111570.0,0.00680273]
[1760613509331,0.58924938,111580.0,111570.0,0.18606238]
[1760613510743,0.58924938,111580.0,111570.0,0.00680273]
[1760613511223,0.24924359,111580.0,111570.0,0.18606238]
[1760613511425,0.58924938,111580.0,111570.0,0.18606238]
[1760613519200,0.24924359,111580.0,111570.0,0.18606238]
[1760613519337,0.58924938,111580.0,111570.0,0.18606238]
[1760613520815,0.24924359,111580.0,111570.0,0.18606238]
[1760613521078,0.58924938,111580.0,111570.0,0.18606238]
[1760613525823,0.24924359,111580.0,111570.0,0.18606238]
[1760613526048,0.58924938,111580.0,111570.0,0.18606238]
[1760613526481,0.07,111580.0,111570.0,0.2757525]
[1760613526709,0.35646782,111590.0,111580.0,0.17924359]
[1760613526710,0.02094583,111590.0,111580.0,0.17924359]
[1760613526934,0.06156107,111590.0,111580.0,0.28685806]
[1760613527148,0.06156107,111590.0,111580.0,0.27010209]
[1760613527593,0.06,111590.0,111580.0,0.27010209]
[1760613528059,0.06,111590.0,111580.0,0.36022209]
[1760613528296,0.34896556,111610.0,111600.0,0.17921146]
[1760613528589,0.7442333,111620.0,111600.0,0.17921146]
[1760613528842,0.7442333,111620.0,111610.0,0.17919541]
[1760613529042,0.6724812,111620.0,111610.0,0.17919541]
[1760613529258,0.6724812,111620.0,111600.0,0.26890158]
[1760613529259,0.65311028,111620.0,111600.0,0.26890158]
[1760613529723,0.17919541,111610.0,111600.0,0.26890158]
[1760613529963,0.30919541,111610.0,111600.0,0.26890158]
[1760613530175,0.30919541,111610.0,111600.0,0.26895158]
[1760613530631,0.6492012,111610.0,111600.0,0.26895158]
[1760613530836,0.47000579,111610.0,111600.0,0.26895158]
[1760613531311,0.02,111610.0,111600.0,0.26895158]
[1760613531935,0.19919541,111610.0,111600.0,0.26895158]
[1760613532286,0.02,111610.0,111600.0,0.26895158]
[1760613533570,0.02,111610.0,111600.0,0.35907158]
[1760613542843,0.5392012,111610.0,111600.0,0.08974012]
[1760613543474,0.5392012,111610.0,111600.0,0.26895158]
[1760613543934,0.5392012,111610.0,111600.0,0.08974012]
[1760613544869,0.5392012,111610.0,111600.0,0.26895158]
[1760613545479,0.58139499,111610.0,111600.0,0.26895158]
[1760613545882,0.58139499,111610.0,111600.0,0.08974012]
[1760613546744,0.92139499,111610.0,111600.0,5e-05]
[1760613555046,0.53919541,111610.0,111600.0,5e-05]
[1760613555259,0.92139499,111610.0,111600.0,5e-05]
[1760613562150,0.9483392,111610.0,111600.0,5e-05]
[1760613562357,0.42914379,111610.0,111600.0,0.17926146]
[1760613562574,0.40219958,111610.0,111600.0,0.17926146]
[1760613562776,0.58139499,111610.0,111600.0,0.17926146]
[1760613563688,0.58139499,111610.0,111600.0,5e-05]
[1760613566120,0.6083392,111610.0,111600.0,5e-05]
[1760613567625,0.9483392,111610.0,111600.0,5e-05]
[1760613567848,1.56545011,111610.0,111600.0,5e-05]
[1760613568080,6.49257184,111610.0,111600.0,5e-05]
[1760613568328,6.51720922,111610.0,111600.0,5e-05]
[1760613568557,6.52189436,111610.0,111600.0,5e-05]
[1760613569018,6.52289436,111610.0,111600.0,5e-05]
[1760613569259,6.56836004,111610.0,111600.0,5e-05]
[1760613570011,6.59246909,111610.0,111600.0,5e-05]
[1760613571243,6.56836004,111610.0,111600.0,5e-05]
[1760613571472,6.45091424,111610.0,111600.0,5e-05]
[1760613571613,6.58620499,111610.0,111600.0,5e-05]
[1760613571814,6.60016797,111610.0,111600.0,5e-05]
[1760613573467,6.60015679,111610.0,111600.0,5e-05]
[1760613578159,6.69459679,111610.0,111600.0,5e-05]
[1760613578367,6.57551941,111610.0,111600.0,5e-05]
[1760613578751,6.66520149,111610.0,111600.0,5e-05]
[1760613578957,6.57551941,111610.0,111600.0,5e-05]
[1760613580708,6.55616256,111610.0,111600.0,5e-05]
[1760613590028,6.55652036,111610.0,111600.0,5e-05]
[1760613593427,6.58115774,111610.0,111600.0,5e-05]
[1760613595507,6.58955998,111610.0,111600.0,5e-05]
[1760613595715,6.67924206,111610.0,111600.0,5e-05]
[1760613597680,6.67925103,111610.0,111600.0,5e-05]
[1760613601614,0.55539374,111600.0,111590.0,1e-08]
[1760613601825,5.67924359,111580.0,111570.0,0.00343898]
[1760613602032,6.5204833,111580.0,111570.0,0.00352856]
[1760613602265,6.61016538,111580.0,111570.0,0.00352856]
[1760613602474,6.63712271,111580.0,111570.0,0.0046971]
[1760613602681,6.64180905,111580.0,111570.0,0.0046971]
[1760613603334,6.66644643,111580.0,111570.0,0.0046971]
[1760613604520,6.66744643,111580.0,111570.0,0.0046971]
[1760613604929,6.66900781,111580.0,111570.0,0.0046971]
[1760613605648,6.24436812,111580.0,111570.0,0.0046971]
[1760613606133,6.62066767,111580.0,111570.0,0.0046971]
[1760613606808,0.51942514,111540.0,111530.0,0.14045921]
[1760613607018,0.62942514,111540.0,111530.0,0.14050914]
[1760613607191,0.96942514,111540.0,111530.0,4.993e-05]
[1760613607672,0.51944121,111530.0,111520.0,0.05810178]
[1760613607884,0.58877709,111530.0,111520.0,0.17948895]
[1760613608092,0.58877709,111530.0,111520.0,0.00014893]
[1760613608308,0.92877709,111530.0,111520.0,0.00307184]
[1760613608517,0.94130719,111530.0,111520.0,0.00307184]
[1760613608951,1.04308838,111530.0,111520.0,0.00307184]
[1760613609181,0.44883056,111530.0,111520.0,0.00307184]
[1760613609396,0.78894783,111530.0,111520.0,0.18241186]
[1760613609830,0.44883056,111530.0,111520.0,0.18241186]
[1760613610078,0.43630046,111530.0,111520.0,0.18241186]
[1760613610542,0.43630046,111530.0,111520.0,0.18341186]
[1760613610763,0.43630046,111530.0,111520.0,0.18241186]
[1760613610986,0.01933588,111530.0,111520.0,0.27210198]
[1760613611208,0.13192021,111530.0,111520.0,0.61221925]
[1760613611421,0.01933588,111530.0,111520.0,0.27210198]
[1760613612082,0.09974076,111530.0,111520.0,0.27210198]
[1760613612511,0.01933588,111530.0,111520.0,0.27210198]
[1760613612723,0.09973864,111530.0,111520.0,0.27210198]
[1760613613443,0.09973864,111530.0,111520.0,0.61221925]
[1760613613647,0.09973864,111530.0,111520.0,0.61321925]
[1760613613850,0.09973864,111530.0,111520.0,0.17612412]
[1760613614062,0.09973864,111530.0,111520.0,0.19405812]
[1760613614835,0.01933588,111530.0,111520.0,0.19405812]
[1760613615286,0.09973864,111530.0,111520.0,0.19405812]
[1760613616351,0.28906258,111530.0,111520.0,0.27003014]
[1760613616571,0.96917985,111530.0,111520.0,0.09069012]
[1760613617000,1.05564928,111530.0,111520.0,0.001]
[1760613617255,1.11479419,111530.0,111520.0,0.001]
[1760613617466,1.11479419,111530.0,111510.0,0.17935525]
[1760613617668,1.06450704,111530.0,111510.0,0.10665782]
[1760613617876,0.08040368,111520.0,111510.0,0.17935525]
[1760613618082,0.14973956,111520.0,111510.0,0.17935525]
[1760613618521,0.14973956,111520.0,111510.0,0.17994]
[1760613619568,0.32907958,111520.0,111510.0,0.17994]
[1760613619776,0.32907958,111520.0,111510.0,0.08294357]
[1760613619991,0.2486759,111520.0,111510.0,0.08294357]
[1760613620200,0.06933588,111520.0,111510.0,0.0962102]
[1760613620620,0.06933588,111520.0,111510.0,0.10087918]
[1760613621034,0.2486759,111520.0,111510.0,0.10087918]
[1760613621252,0.27564062,111520.0,111510.0,0.10087918]
[1760613621671,0.27564062,111520.0,111510.0,0.01852036]
[1760613621878,0.2486759,111520.0,111510.0,0.19787561]
[1760613622094,0.2486759,111520.0,111510.0,0.00058475]
[1760613622303,0.5886759,111520.0,111510.0,0.00058475]
[1760613622553,0.40933588,111520.0,111510.0,0.17994086]
[1760613622760,0.38014538,111520.0,111510.0,0.20538674]
[1760613622965,0.33797863,111520.0,111510.0,0.20538674]
[1760613623187,0.33797863,111520.0,111510.0,0.18831525]
[1760613624904,0.33797863,111520.0,111510.0,0.17994086]
[1760613625778,0.40231066,111520.0,111510.0,0.17994086]
[1760613626704,0.08071668,111550.0,111530.0,0.17931641]
[1760613626917,0.47862637,111550.0,111540.0,0.17930787]
[1760613627127,0.0769608,111550.0,111540.0,0.17930787]
[1760613627337,0.05,111550.0,111540.0,0.19723865]
[1760613627565,0.05,111550.0,111530.0,0.17931641]
[1760613627774,0.39011727,111550.0,111530.0,0.28693892]
[1760613627981,0.56940922,111550.0,111530.0,0.26900653]
[1760613628193,0.34,111540.0,111530.0,0.26900653]
[1760613628399,0.35,111540.0,111530.0,0.26901406]
[1760613629949,0.19930787,111540.0,111530.0,0.08969012]
[1760613630157,0.53942514,111540.0,111530.0,0.08969012]
[1760613630376,0.17932671,111530.0,111510.0,0.17994086]
[1760613630586,0.35011727,111530.0,111520.0,0.17933975]
[1760613631278,0.35011727,111530.0,111510.0,0.35975098]
[1760613631490,0.38846476,111520.0,111510.0,0.17993599]
[1760613631700,0.04834749,111520.0,111510.0,0.27005599]
[1760613631908,0.38834749,111520.0,111510.0,0.27005599]
[1760613632118,0.39834749,111520.0,111510.0,0.27005599]
[1760613633708,0.39834749,111520.0,111510.0,0.17993599]
[1760613633915,0.39834749,111520.0,111510.0,0.18093599]
[1760613634914,0.41769136,111520.0,111510.0,0.18093599]
[1760613635914,0.75791378,111520.0,111510.0,0.18093599]
[1760613636574,0.07769136,111520.0,111510.0,0.18093599]
[1760613636781,0.40769136,111520.0,111510.0,0.27062611]
[1760613638634,0.05158799,111520.0,111510.0,0.27062611]
[1760613639953,0.06769136,111520.0,111510.0,0.27062611]
[1760613640774,0.09993535,111520.0,111510.0,0.27062611]
[1760613641353,0.06769136,111520.0,111510.0,0.27062611]
[1760613641764,0.09993859,111520.0,111510.0,0.27062611]
[1760613643683,0.0515911,111520.0,111510.0,0.27062611]
[1760613644746,0.07578465,111520.0,111510.0,0.27062611]
[1760613647340,0.01934387,111520.0,111510.0,0.27062611]
[1760613648495,0.01934387,111520.0,111510.0,0.26962611]
[1760613648724,0.01934387,111520.0,111510.0,0.27062611]
[1760613651441,0.35934387,111520.0,111510.0,0.27062611]
[1760613655791,0.34,111520.0,111510.0,0.27062611]
[1760613657576,0.34022242,111530.0,111520.0,0.17933125]
[1760613657826,0.34022242,111530.0,111520.0,0.35914137]
[1760613657827,0.35958595,111530.0,111520.0,0.35914137]
[1760613658260,0.35958595,111530.0,111520.0,0.35915014]
[1760613659096,0.3837795,111530.0,111520.0,0.35915014]
[1760613659847,0.18013503,111530.0,111520.0,0.35915014]
[1760613660051,0.15594148,111530.0,111520.0,0.35915014]
[1760613661796,0.15594148,111530.0,111520.0,0.17981012]
[1760613661987,0.15594148,111530.0,111520.0,0.35915014]
[1760613666602,0.01936353,111530.0,111520.0,0.35915014]
[1760613667472,0.40201748,111530.0,111520.0,0.35915014]
[1760613668414,0.40201748,111530.0,111520.0,0.36015014]
[1760613673388,0.15668444,111530.0,111520.0,0.36015014]
[1760613674028,0.16861655,111530.0,111520.0,0.36015014]
[1760613674761,0.39458606,111530.0,111520.0,0.36015014]
[1760613675549,0.01193211,111530.0,111520.0,0.36015014]
[1760613675944,0.7468475,111540.0,111520.0,0.36015014]
[1760613676118,0.7668475,111540.0,111530.0,0.10762251]
[1760613677700,0.02575524,111550.0,111540.0,0.17930787]
[1760613677958,0.00156169,111550.0,111540.0,0.35911799]
[1760613678185,0.37769451,111550.0,111540.0,0.35911799]
[1760613678405,0.34,111550.0,111540.0,0.35911799]
[1760613678618,0.43380169,111560.0,111540.0,0.35911799]
[1760613678831,0.50380169,111560.0,111550.0,0.01792917]
[1760613679051,0.84380169,111560.0,111550.0,0.01792917]
[1760613679663,1.02307741,111560.0,111550.0,0.01792917]
[1760613680196,1.02322749,111560.0,111550.0,0.01792917]
[1760613681765,0.84395177,111560.0,111550.0,0.01792917]
[1760613682021,0.47276324,111560.0,111550.0,0.28691108]
[1760613682205,0.44856969,111560.0,111550.0,0.26898191]
[1760613682605,0.04013097,111560.0,111550.0,0.26898191]
[1760613682877,0.00171136,111560.0,111550.0,0.26898191]
[1760613683090,0.00015008,111560.0,111550.0,0.26898191]
[1760613683974,0.00015008,111560.0,111550.0,0.28003558]
[1760613684468,0.00015008,111560.0,111550.0,0.31621786]
[1760613685399,0.00015008,111560.0,111550.0,0.31721786]
[1760613685613,0.00015008,111560.0,111550.0,0.31621786]
[1760613685847,0.00015008,111560.0,111550.0,0.31821786]
[1760613687421,0.38280403,111560.0,111550.0,0.09169012]
[1760613687656,0.90207975,111560.0,111550.0,0.09169012]
[1760613687891,0.38638822,111560.0,111550.0,0.18181012]
[1760613688104,0.94831789,111560.0,111550.0,0.17981012]
[1760613688387,0.76904217,111560.0,111550.0,0.08969012]
[1760613688609,0.94831789,111560.0,111550.0,0.17981012]
[1760613689043,0.94831789,111560.0,111550.0,0.18081012]
[1760613690390,0.94831789,111560.0,111550.0,0.09069012]
[1760613690601,0.94831789,111560.0,111550.0,0.18081012]
[1760613691027,0.76904217,111560.0,111550.0,0.18081012]
[1760613692068,0.94831789,111560.0,111550.0,0.18081012]
[1760613692914,0.76904217,111560.0,111550.0,0.18081012]
[1760613693759,0.94831789,111560.0,111550.0,0.18081012]
[1760613694720,0.94831789,111560.0,111550.0,0.001]
[1760613694934,0.95831789,111560.0,111550.0,0.001]
[1760613695790,0.98251144,111560.0,111550.0,0.001]
[1760613698038,0.77904217,111560.0,111550.0,0.09069012]
[1760613698241,0.76904217,111560.0,111550.0,0.10861929]
[1760613698733,0.94831789,111560.0,111550.0,0.001]
[1760613698938,0.95831789,111560.0,111550.0,0.10900917]
[1760613700701,0.95831789,111560.0,111550.0,0.10800917]
[1760613700923,0.95831789,111560.0,111550.0,0.01792917]
[1760613704218,0.80323572,111560.0,111550.0,0.01792917]
[1760613704647,0.79323572,111560.0,111550.0,0.10761929]
[1760613704871,0.76904217,111560.0,111550.0,0.10761929]
[1760613705505,0.76907465,111560.0,111550.0,0.10761929]
[1760613705913,0.94835037,111560.0,111550.0,0.10761929]
[1760613706967,0.76907465,111560.0,111550.0,0.10761929]
[1760613709689,0.3864207,111560.0,111550.0,0.10761929]
[1760613709898,0.76907465,111560.0,111550.0,0.10761929]
[1760613710711,0.3864207,111560.0,111550.0,0.10761929]
[1760613710924,0.76907465,111560.0,111550.0,0.10761929]
[1760613711128,0.76907465,111560.0,111550.0,0.28691108]
[1760613711327,0.76907465,111560.0,111550.0,0.26898191]
[1760613712400,0.35946947,111560.0,111550.0,0.26898191]
[1760613712596,0.01946947,111560.0,111550.0,0.26898191]
[1760613712802,0.74212342,111560.0,111550.0,0.26898191]
[1760613713009,0.40212342,111560.0,111550.0,0.26898191]
[1760613713231,0.38280403,111560.0,111550.0,0.26898191]
[1760613713724,0.38280403,111560.0,111550.0,0.08969012]
[1760613713914,0.38280403,111560.0,111550.0,0.09069012]
[1760613713915,0.93140959,111560.0,111550.0,0.09069012]
[1760613714117,0.95555883,111560.0,111550.0,0.09069012]
[1760613714324,0.95555883,111560.0,111550.0,0.10861929]
[1760613714543,0.95555883,111560.0,111550.0,0.09069012]
[1760613716145,0.95555883,111560.0,111550.0,0.08969012]
[1760613716759,0.95496498,111560.0,111550.0,0.08969012]
[1760613716962,0.95496498,111560.0,111550.0,0.10761929]
[1760613717166,0.98721221,111560.0,111550.0,0.10761929]
[1760613717780,0.51929179,111550.0,111540.0,0.09008]
[1760613717989,1.14885378,111550.0,111540.0,0.17977012]
[1760613718182,0.74198379,111550.0,111540.0,0.17977012]
[1760613718613,0.7689386,111550.0,111540.0,0.17977012]
[1760613718853,0.94823039,111550.0,111540.0,0.08969012]
[1760613719055,0.94823039,111550.0,111540.0,0.17977012]
[1760613719267,0.7689386,111550.0,111540.0,0.17977012]
[1760613719480,0.7689386,111550.0,111540.0,0.18077012]
[1760613720340,0.7689386,111550.0,111540.0,0.36007799]
[1760613721387,0.7689386,111550.0,111540.0,0.18077012]
[1760613721807,0.7689386,111550.0,111540.0,0.36007799]
[1760613722083,0.74198379,111550.0,111540.0,0.36007799]
[1760613722532,0.01932984,111550.0,111540.0,0.36007799]
[1760613722732,0.74198379,111550.0,111540.0,0.36007799]
[1760613723460,0.74198379,111550.0,111540.0,0.18077012]
[1760613723871,0.74021539,111550.0,111540.0,0.18077012]
[1760613724265,1.31216113,111550.0,111540.0,0.09069012]
[1760613724467,1.3391166,111550.0,111540.0,0.18077012]
[1760613725498,0.41873295,111550.0,111540.0,0.18077012]
[1760613725696,0.38451691,111550.0,111540.0,0.18077012]
[1760613725918,0.76717086,111550.0,111540.0,0.18077012]
[1760613726119,0.76717086,111550.0,111540.0,0.36007799]
[1760613726728,0.76717086,111550.0,111540.0,0.18077012]
[1760613727328,0.94646265,111550.0,111540.0,0.18077012]
[1760613727737,0.38451691,111550.0,111540.0,0.18077012]
[1760613728167,0.76717086,111550.0,111540.0,0.18077012]
[1760613729414,0.72454816,111550.0,111540.0,0.18077012]
[1760613729646,0.01756144,111550.0,111540.0,0.36007799]
[1760613729859,0.34989188,111570.0,111550.0,0.17927766]
[1760613730081,0.34003125,111560.0,111540.0,0.27935326]
[1760613730299,0.34003125,111560.0,111550.0,0.08969012]
[1760613731989,0.34003125,111560.0,111550.0,0.10761929]
[1760613734824,0.36698277,111560.0,111550.0,0.10761929]
[1760613735299,0.36698277,111560.0,111550.0,0.08969012]
[1760613736388,0.36698277,111560.0,111550.0,0.26898191]
[1760613736661,0.38634061,111560.0,111550.0,0.26898191]
[1760613736896,0.38634061,111560.0,111550.0,0.08969012]
[1760613737129,0.56561633,111560.0,111550.0,0.08969012]
[1760613737380,0.91564758,111560.0,111550.0,0.08969012]
[1760613737608,0.91564758,111560.0,111550.0,0.17977012]
[1760613738073,1.25564758,111560.0,111550.0,0.17977012]
[1760613738737,1.25564758,111560.0,111550.0,0.08969012]
[1760613739018,1.25564758,111560.0,111550.0,0.17977012]
[1760613740305,1.25564758,111560.0,111550.0,0.08969012]
[1760613740510,1.25564758,111560.0,111540.0,0.00015008]
[1760613740511,0.51929179,111550.0,111540.0,0.00015008]
[1760613740718,0.88868088,111550.0,111540.0,0.00015008]
[1760613741581,0.94514415,111550.0,111540.0,0.00015008]
[1760613742313,0.91289692,111550.0,111540.0,0.00015008]
[1760613742746,0.91289692,111550.0,111540.0,0.00115008]
[1760613743584,0.91445845,111550.0,111540.0,0.00115008]
[1760613752354,0.68631831,111550.0,111540.0,0.00115008]
[1760613752577,0.66210227,111550.0,111540.0,0.00115008]
[1760613752819,0.84139406,111550.0,111540.0,0.00115008]
[1760613753030,0.86835311,111550.0,111540.0,0.00115008]
[1760613762307,0.89256915,111550.0,111540.0,0.00115008]
[1760613763704,6.35846476,111550.0,111540.0,0.00115008]
[1760613763916,6.50043053,111550.0,111540.0,0.00115008]
[1760613764609,6.498869,111550.0,111540.0,0.00015008]
[1760613765333,6.51565505,111550.0,111540.0,0.00015008]
[1760613765542,6.53179472,111550.0,111540.0,0.00015008]
[1760613766410,6.61672328,111550.0,111540.0,1e-08]
[1760613766624,0.5555223,111520.0,111510.0,0.00058475]
[1760613766854,1.33509286,111520.0,111510.0,0.00058475]
[1760613767285,1.3592683,111520.0,111510.0,0.00058475]
[1760613768206,1.36083016,111520.0,111510.0,0.00058475]
[1760613768413,1.36083016,111520.0,111510.0,0.00158475]
[1760613769857,1.37186898,111520.0,111510.0,0.00158475]
[1760613772577,0.6556242,111520.0,111510.0,0.00158475]